bitfinex/quotes_SOLUSD_20250819
["timestamp","ask_amount","ask_price","bid_price","bid_amount"]
[1755580595841,7.8711079,179.87,179.86,0.75]
[1755580596545,7.8711079,179.87,179.86,8.85803991]
[1755580596696,4.651252,179.92,179.86,8.85803991]
[1755580596697,3.73948045,179.91,179.86,8.85803991]
[1755580596898,7.89427781,179.9,179.87,8.10803991]
[1755580597097,7.89427781,179.89,179.88,0.69]
[1755580597696,4.15479736,179.89,179.88,0.69]
[1755580597934,7.89427781,179.9,179.88,0.69]
[1755580598225,7.89427781,179.89,179.88,0.69]
[1755580598436,3.73948045,179.91,179.88,0.69]
[1755580598598,16.00218837,179.9,179.86,0.06]
[1755580598802,7.89414846,179.89,179.86,0.76]
[1755580599147,3.73948045,179.89,179.87,0.7]
[1755580599499,26.0,179.9,179.88,0.7]
[1755580599914,8.10803991,179.92,179.87,8.10803991]
[1755580600134,7.89399349,179.91,179.89,0.7]
[1755580600336,7.89399349,179.9,179.89,0.7]
[1755580600512,7.89399349,179.9,179.87,8.10803991]
[1755580600724,3.73934353,179.9,179.87,0.7]
[1755580601409,3.73934353,179.9,179.88,0.7]
[1755580602738,11.84738344,179.89,179.86,0.06]
[1755580602965,11.84738344,179.88,179.86,0.06]
[1755580603326,8.82803991,179.88,179.86,0.06]
[1755580603528,8.10803991,179.88,179.86,0.06]
[1755580603825,11.84738344,179.88,179.86,0.06]
[1755580604131,8.10803991,179.88,179.86,0.06]
[1755580604338,34.10803991,179.88,179.86,0.06]
[1755580604534,26.0,179.88,179.86,0.06]
[1755580604719,34.10803991,179.88,179.86,0.06]
[1755580605451,132.7,179.91,179.87,0.7]
[1755580605757,4.651252,179.95,179.89,8.10803991]
[1755580605915,7.9017054,179.93,179.91,8.10803991]
[1755580606110,3.74233882,179.93,179.92,8.10803991]
[1755580606312,3.74233882,179.93,179.9,8.10803991]
[1755580606513,3.74233882,179.93,179.9,0.7]
[1755580606713,3.74233882,179.93,179.91,0.7]
[1755580607231,3.74233882,179.93,179.89,0.7]
[1755580607628,3.74233882,179.93,179.88,8.10803991]
[1755580607842,3.74233882,179.93,179.9,0.7]
[1755580608357,3.77233882,179.94,179.9,0.7]
[1755580608648,12.60037873,179.94,179.9,0.7]
[1755580608861,0.03,179.94,179.91,0.7]
[1755580609015,3.77233882,179.94,179.92,0.7]
[1755580609355,3.77233882,179.94,179.9,8.10803991]
[1755580609534,0.03,179.94,179.89,8.80803991]
[1755580609736,11.88037873,179.94,179.88,8.10803991]
[1755580609932,8.10803991,179.92,179.87,0.7]
[1755580610546,8.10803991,179.88,179.86,0.06]
[1755580610719,8.10803991,179.87,179.86,0.06]
[1755580610919,16.72631308,179.87,179.86,0.06]
[1755580611462,16.72668911,179.87,179.86,0.06]
[1755580611642,16.72714272,179.87,179.86,0.06]
[1755580614554,16.72753683,179.87,179.86,0.06]
[1755580614728,16.00753683,179.87,179.86,0.06]
[1755580615347,16.72753683,179.87,179.86,0.06]
[1755580617429,16.72814802,179.87,179.86,0.06]
[1755580617630,21.37940002,179.87,179.86,0.06]
[1755580618246,16.72814802,179.87,179.86,0.06]
[1755580618657,21.37940002,179.87,179.86,0.06]
[1755580619043,47.37940002,179.87,179.86,0.06]
[1755580619237,21.37940002,179.87,179.86,0.06]
[1755580620442,21.37850782,179.87,179.86,0.06]
[1755580620647,21.37827434,179.87,179.86,0.06]
[1755580620948,16.00702234,179.87,179.86,0.06]
[1755580621262,16.00618972,179.87,179.86,0.06]
[1755580621487,8.10803991,179.88,179.86,0.76]
[1755580621767,8.10803991,179.87,179.86,0.06]
[1755580624189,11.85037873,179.88,179.86,0.76]
[1755580624691,8.10803991,179.87,179.86,0.06]
[1755580625589,11.85037873,179.87,179.86,0.06]
[1755580627682,16.72709655,179.87,179.86,0.06]
[1755580628677,16.72771932,179.87,179.86,0.06]
[1755580628871,16.00771932,179.87,179.86,0.06]
[1755580629486,16.00741137,179.87,179.86,0.06]
[1755580629679,16.00741137,179.87,179.86,0.77]
[1755580629993,7.89937146,179.87,179.86,0.77]
[1755580630392,7.89937146,179.87,179.86,0.06]
[1755580630578,16.00741137,179.87,179.86,0.06]
[1755580630778,7.89937146,179.87,179.86,0.06]
[1755580631091,16.00741137,179.87,179.86,0.06]
[1755580631692,7.89937146,179.87,179.86,0.06]
[1755580632597,16.00741137,179.87,179.86,0.06]
[1755580632776,7.89937146,179.87,179.86,0.06]
[1755580632978,7.89937146,179.87,179.86,0.77]
[1755580633211,3.74233882,179.87,179.86,0.77]
[1755580634208,3.74233882,179.87,179.86,0.06]
[1755580634683,11.85037873,179.87,179.86,0.06]
[1755580635306,16.00811551,179.87,179.86,0.06]
[1755580635505,11.85037873,179.87,179.86,0.06]
[1755580635691,11.85037873,179.87,179.86,0.77]
[1755580635692,3.74233882,179.87,179.86,0.77]
[1755580637781,3.74233882,179.87,179.86,8.87803991]
[1755580637983,0.03,179.96,179.87,15.10621557]
[1755580637984,0.03,179.94,179.87,15.10621557]
[1755580638186,3.74113879,179.93,179.91,8.10803991]
[1755580638486,0.03,179.94,179.92,0.71]
[1755580638685,3.77113879,179.94,179.93,0.71]
[1755580638999,3.77113879,179.94,179.93,8.81803991]
[1755580639205,0.03,179.94,179.93,8.81803991]
[1755580639708,0.03,179.94,179.93,0.71]
[1755580640203,0.03,179.94,179.93,8.81803991]
[1755580640908,0.03,179.94,179.93,0.71]
[1755580641110,0.03,179.94,179.93,8.81803991]
[1755580641412,0.03,179.94,179.93,0.71]
[1755580641583,0.03,179.94,179.93,8.81803991]
[1755580642929,0.03,179.94,179.93,29.48197236]
[1755580645418,0.03,179.94,179.93,55.48197236]
[1755580646389,0.03,179.94,179.93,49.92425548]
[1755580647310,0.03,179.94,179.92,47.62803991]
[1755580647518,0.03,179.94,179.93,8.81803991]
[1755580649313,0.03,179.94,179.92,39.52]
[1755580649713,0.03,179.94,179.93,0.71]
[1755580650019,0.03,179.94,179.93,8.81803991]
[1755580650719,0.03,179.94,179.93,23.21425548]
[1755580650920,0.03,179.94,179.93,23.92425548]
[1755580654419,0.03,179.94,179.92,39.52]
[1755580655118,0.03,179.94,179.93,15.81621557]
[1755580655308,0.03,179.94,179.93,23.92425548]
[1755580656137,0.03,179.94,179.93,29.48197236]
[1755580657201,0.03,179.94,179.93,55.48197236]
[1755580658705,0.03,179.94,179.93,29.48197236]
[1755580662436,0.03,179.94,179.93,55.45197236]
[1755580665616,0.03,179.94,179.93,29.45197236]
[1755580665816,0.03,179.96,179.95,41.10621557]
[1755580666025,0.03,179.96,179.95,88.69425548]
[1755580666544,0.03,179.96,179.95,80.58621557]
[1755580666717,0.03,179.96,179.95,88.69425548]
[1755580667319,0.03,179.96,179.95,94.25135467]
[1755580667527,0.03,179.96,179.95,94.93135467]
[1755580673048,0.03,179.96,179.95,94.25135467]
[1755580673345,0.03,179.96,179.95,68.25135467]
[1755580674431,0.73,179.96,179.95,62.69425548]
[1755580675135,0.73,179.96,179.95,39.48]
[1755580675654,8.83803991,179.96,179.95,39.48]
[1755580675850,0.73,179.96,179.95,39.48]
[1755580677452,8.83803991,179.96,179.95,39.48]
[1755580677948,0.73,179.96,179.95,39.48]
[1755580678151,8.83803991,179.96,179.95,39.48]
[1755580678453,0.73,179.96,179.95,39.48]
[1755580678632,8.83803991,179.96,179.95,39.48]
[1755580679751,0.73,179.96,179.95,39.48]
[1755580680250,8.83803991,179.96,179.93,0.06]
[1755580680550,8.13803991,179.96,179.93,39.54]
[1755580680748,8.10803991,179.95,179.93,39.54]
[1755580680919,0.7,179.94,179.93,39.54]
[1755580682733,8.80803991,179.94,179.93,39.54]
[1755580683133,16.6992497,179.94,179.93,0.06]
[1755580683745,16.698965,179.94,179.93,0.06]
[1755580684557,16.698965,179.94,179.91,0.06]
[1755580684743,8.10803991,179.92,179.91,0.06]
[1755580685058,15.998965,179.92,179.91,0.06]
[1755580685431,16.698965,179.92,179.91,0.06]
[1755580687233,38.96128845,179.92,179.91,0.06]
[1755580687557,42.698965,179.92,179.91,0.06]
[1755580687743,16.698965,179.92,179.91,0.06]
[1755580688536,42.698965,179.92,179.91,0.06]
[1755580688939,3.73767655,179.92,179.91,0.06]
[1755580689252,0.03,179.94,179.91,0.75]
[1755580689560,0.03,179.94,179.91,40.23]
[1755580689863,0.03,179.94,179.92,0.69]
[1755580690853,0.03,179.94,179.93,0.69]
[1755580693361,0.03,179.94,179.93,8.79803991]
[1755580693562,0.03,179.94,179.93,29.46197236]
[1755580694948,0.03,179.94,179.91,15.85621557]
[1755580695150,0.03,179.94,179.92,40.17]
[1755580695958,8.10803991,179.93,179.92,39.48]
[1755580696475,8.82803991,179.93,179.92,39.48]
[1755580696965,8.82803991,179.93,179.91,0.06]
[1755580697180,0.03,179.94,179.91,0.06]
[1755580697343,8.10803991,179.92,179.91,0.06]
[1755580697849,8.10803991,179.93,179.91,0.75]
[1755580698048,0.03,179.94,179.91,0.06]
[1755580698049,8.10803991,179.92,179.91,0.06]
[1755580699743,8.82803991,179.92,179.91,0.06]
[1755580702871,0.72,179.92,179.91,0.06]
[1755580703157,8.10803991,179.92,179.91,0.06]
[1755580703864,8.82803991,179.92,179.91,0.06]
[1755580704754,26.0,179.92,179.91,0.06]
[1755580705067,8.10803991,179.92,179.91,0.06]
[1755580706470,8.10803991,179.93,179.91,0.75]
[1755580706667,8.10803991,179.93,179.92,0.69]
[1755580706976,8.10803991,179.93,179.91,0.06]
[1755580707149,8.10803991,179.92,179.91,0.06]
[1755580708069,8.10803991,179.93,179.91,0.75]
[1755580708469,0.03,179.94,179.92,0.69]
[1755580711150,0.03,179.94,179.93,0.69]
[1755580713178,8.85803991,179.94,179.91,39.54]
[1755580713366,8.10803991,179.92,179.91,39.54]
[1755580713566,8.82803991,179.92,179.91,39.54]
[1755580713882,8.82803991,179.92,179.91,0.06]
[1755580715752,0.72,179.92,179.91,0.06]
[1755580715955,8.82803991,179.92,179.91,0.06]
[1755580717562,8.10803991,179.92,179.91,0.06]
[1755580717768,8.13803991,179.94,179.91,0.75]
[1755580717954,8.13803991,179.94,179.92,0.71]
[1755580718154,8.13803991,179.94,179.91,0.06]
[1755580718354,0.03,179.94,179.93,0.71]
[1755580718958,0.03,179.94,179.92,39.48]
[1755580718959,8.13803991,179.94,179.92,39.48]
[1755580719159,8.10803991,179.93,179.92,39.48]
[1755580719769,0.03,179.94,179.92,39.48]
[1755580719971,8.10803991,179.93,179.92,39.48]
[1755580720965,12.50488986,179.93,179.91,0.06]
[1755580721192,8.10803991,179.92,179.91,0.06]
[1755580721659,8.10803991,179.92,179.91,0.77]
[1755580721860,11.87488986,179.94,179.91,0.77]
[1755580722077,11.87488986,179.94,179.91,0.06]
[1755580722078,8.13803991,179.94,179.91,0.06]
[1755580722380,8.10803991,179.93,179.92,0.71]
[1755580722575,8.10803991,179.93,179.91,0.77]
[1755580723174,0.03,179.94,179.92,0.71]
[1755580723370,0.03,179.94,179.93,39.48]
[1755580723676,0.03,179.94,179.93,40.19]
[1755580724271,0.03,179.94,179.93,39.48]
[1755580724672,0.03,179.94,179.93,40.19]
[1755580725675,0.03,179.94,179.93,63.40425548]
[1755580725878,0.03,179.94,179.93,68.96197236]
[1755580727080,0.03,179.94,179.93,63.40425548]
[1755580727988,0.03,179.94,179.93,55.29621557]
[1755580728672,0.03,179.94,179.91,0.06]
[1755580728870,8.10803991,179.92,179.91,0.06]
[1755580729184,8.10803991,179.92,179.91,39.56]
[1755580729403,8.76803991,179.92,179.91,0.06]
[1755580729767,12.50525024,179.92,179.91,0.06]
[1755580729989,8.76803991,179.92,179.91,0.06]
[1755580730177,12.50525024,179.92,179.91,0.06]
[1755580730490,8.76803991,179.92,179.91,0.06]
[1755580730668,12.50525024,179.92,179.91,0.06]
[1755580730864,8.76803991,179.92,179.91,0.06]
[1755580731065,12.50525024,179.92,179.91,0.06]
[1755580731264,3.73721033,179.93,179.91,0.06]
[1755580731575,8.10803991,179.92,179.91,0.06]
[1755580734689,3.73721033,179.93,179.91,0.06]
[1755580734876,8.10803991,179.92,179.91,0.06]
[1755580738181,8.10803991,179.93,179.91,0.77]
[1755580738377,11.87525024,179.94,179.92,40.19]
[1755580738571,11.87525024,179.94,179.93,0.71]
[1755580738572,8.13803991,179.94,179.93,0.71]
[1755580738779,0.03,179.94,179.93,0.71]
[1755580740298,8.13803991,179.94,179.92,39.48]
[1755580740673,8.13803991,179.94,179.92,40.19]
[1755580740993,0.03,179.94,179.93,0.71]
[1755580741699,0.03,179.94,179.93,29.48197236]
[1755580742872,0.03,179.94,179.93,15.81621557]
[1755580743974,0.03,179.94,179.92,39.48]
[1755580743975,8.13803991,179.94,179.92,39.48]
[1755580744175,8.13803991,179.94,179.93,39.5]
[1755580744711,0.69,179.94,179.93,39.5]
[1755580744875,8.79803991,179.94,179.93,39.5]
[1755580745894,0.03,179.94,179.93,39.5]
[1755580746080,8.13803991,179.94,179.93,39.5]
[1755580748910,0.03,179.96,179.95,41.10621557]
[1755580749080,0.03,179.98,179.95,41.10621557]
[1755580749081,0.03,179.98,179.95,49.21425548]
[1755580749283,0.03,179.98,179.97,49.21425548]
[1755580749814,0.03,179.98,179.97,49.90425548]
[1755580750595,0.03,179.98,179.97,26.69]
[1755580750904,0.03,179.98,179.97,26.0]
[1755580751209,0.03,179.98,179.97,26.69]
[1755580751597,8.13803991,179.98,179.96,39.64]
[1755580752307,0.03,179.98,179.96,39.64]
[1755580752627,12.59728402,179.97,179.96,39.64]
[1755580753595,13.31728402,179.97,179.96,39.64]
[1755580759835,26.0,179.95,179.94,39.62]
[1755580760130,17.05311265,179.95,179.94,39.62]
[1755580760503,17.05311265,179.95,179.91,0.06]
[1755580760705,12.59728402,179.92,179.91,39.66]
[1755580761647,12.59728402,179.92,179.91,40.35]
[1755580761809,12.59728402,179.92,179.91,39.66]
[1755580762422,13.31728402,179.92,179.91,39.66]
[1755580762729,13.31728402,179.92,179.91,0.06]
[1755580762907,17.47017685,179.92,179.91,0.06]
[1755580763112,21.20777292,179.92,179.91,0.06]
[1755580763911,21.20777292,179.92,179.9,0.06]
[1755580764114,21.20777292,179.91,179.9,0.06]
[1755580764831,20.48777292,179.91,179.9,0.06]
[1755580765199,16.33488009,179.91,179.9,0.06]
[1755580765528,12.59728402,179.91,179.9,0.06]
[1755580767127,13.31728402,179.91,179.9,0.06]
[1755580767648,21.20391186,179.91,179.9,0.06]
[1755580767804,17.05488009,179.91,179.9,0.06]
[1755580768009,17.46641411,179.91,179.9,0.06]
[1755580768209,21.20401018,179.91,179.9,0.06]
[1755580770213,17.05488009,179.91,179.9,0.06]
[1755580771024,16.33488009,179.91,179.9,0.06]
[1755580771332,4.66940741,179.95,179.9,0.75]
[1755580771512,2.228847,179.95,179.91,0.69]
[1755580771827,2.228847,179.95,179.9,0.06]
[1755580771828,12.59728402,179.94,179.92,0.69]
[1755580772032,12.59728402,179.93,179.92,0.69]
[1755580772220,12.59728402,179.93,179.9,0.75]
[1755580772423,12.59728402,179.93,179.9,0.06]
[1755580772627,12.59728402,179.93,179.91,0.69]
[1755580773040,12.59728402,179.92,179.9,0.06]
[1755580773238,12.59728402,179.91,179.9,0.75]
[1755580773432,12.59728402,179.92,179.9,0.75]
[1755580773637,12.59728402,179.93,179.9,0.75]
[1755580773938,12.59728402,179.92,179.91,0.69]
[1755580774144,12.59728402,179.92,179.9,0.06]
[1755580774344,12.59728402,179.92,179.9,0.75]
[1755580774542,26.72,179.95,179.91,0.69]
[1755580774543,12.59728402,179.93,179.91,0.69]
[1755580774846,12.59728402,179.93,179.92,0.69]
[1755580775042,12.59728402,179.93,179.9,0.06]
[1755580775223,12.59728402,179.92,179.9,0.75]
[1755580775423,12.59728402,179.92,179.9,0.06]
[1755580775646,12.59728402,179.91,179.9,0.06]
[1755580776223,0.72,179.94,179.9,0.06]
[1755580776420,0.72,179.94,179.9,0.75]
[1755580776421,12.59728402,179.92,179.9,0.75]
[1755580778840,12.59728402,179.92,179.9,0.06]
[1755580780947,12.59728402,179.91,179.9,0.06]
[1755580781246,13.25728402,179.91,179.9,0.06]
[1755580781630,12.59728402,179.91,179.9,0.06]
[1755580782926,12.59728402,179.91,179.9,0.78]
[1755580784250,132.73,179.93,179.9,0.78]
[1755580784424,12.59728402,179.91,179.9,0.78]
[1755580784745,12.59728402,179.92,179.9,0.78]
[1755580785064,145.32728402,179.93,179.9,0.78]
[1755580785264,132.73,179.93,179.91,0.72]
[1755580785554,145.32728402,179.93,179.9,0.06]
[1755580785737,12.59728402,179.91,179.9,0.06]
[1755580786732,12.59728402,179.92,179.9,0.06]
[1755580787537,132.73,179.93,179.9,0.06]
[1755580787746,132.73,179.93,179.91,0.72]
[1755580788260,145.32728402,179.93,179.9,0.06]
[1755580788464,140.83055936,179.93,179.9,0.78]
[1755580789364,132.73,179.93,179.91,0.72]
[1755580791166,140.83055936,179.93,179.9,39.58]
[1755580791339,140.83055936,179.93,179.9,40.3]
[1755580793157,132.73,179.93,179.9,40.3]
[1755580793354,132.73,179.93,179.9,39.58]
[1755580793554,132.73,179.93,179.91,0.72]
[1755580793858,132.73,179.93,179.9,39.58]
[1755580794058,132.73,179.93,179.9,40.3]
[1755580794650,132.73,179.93,179.9,48.40055936]
[1755580794952,132.73,179.93,179.91,0.72]
[1755580796136,132.73,179.93,179.9,39.58]
[1755580796371,132.73,179.93,179.9,40.3]
[1755580797444,132.73,179.93,179.9,39.58]
[1755580797763,133.39,179.93,179.9,39.58]
[1755580798059,132.73,179.93,179.9,48.40055936]
[1755580798259,132.73,179.93,179.91,0.72]
[1755580800239,132.73,179.93,179.9,39.58]
[1755580800240,133.39,179.93,179.9,39.58]
[1755580800963,133.39,179.93,179.91,0.06]
[1755580800964,132.73,179.93,179.91,0.06]
[1755580801163,132.73,179.93,179.91,0.78]
[1755580801866,132.73,179.93,179.92,0.72]
[1755580802463,132.73,179.93,179.92,39.5]
[1755580806080,133.39,179.93,179.92,39.5]
[1755580808081,132.73,179.93,179.92,39.5]
[1755580812408,132.73,179.93,179.92,48.26055936]
[1755580812409,0.03,179.93,179.92,48.26055936]
[1755580813770,0.03,179.93,179.92,53.81858514]
[1755580816079,0.03,179.93,179.92,68.92480071]
[1755580816471,0.03,179.95,179.94,41.10621557]
[1755580816676,0.03,179.95,179.94,88.68677493]
[1755580816896,0.03,179.95,179.94,89.34677493]
[1755580818278,0.03,179.95,179.94,94.90418295]
[1755580818912,0.03,179.97,179.95,31.81621557]
[1755580819088,1e-08,179.98,179.97,57.30733429]
[1755580819293,0.03,180.01,180.0,41.10621557]
[1755580819591,0.03,180.01,180.0,96.78733429]
[1755580819902,0.03,180.01,180.0,97.44733429]
[1755580820518,0.03,180.01,180.0,103.00288984]
[1755580821615,0.03,180.01,180.0,94.90233048]
[1755580822183,0.03,180.01,180.0,103.00288984]
[1755580822718,0.03,180.01,180.0,61.04127714]
[1755580822919,0.03,180.01,180.0,41.10621557]
[1755580823225,0.03,180.01,180.0,80.58621557]
[1755580823579,0.03,180.01,180.0,94.90233048]
[1755580823990,0.03,180.01,180.0,103.00288984]
[1755580824407,0.03,180.01,180.0,94.90233048]
[1755580824890,0.03,180.01,180.0,62.66677493]
[1755580825385,0.03,180.01,180.0,54.56621557]
[1755580825595,0.75,180.01,180.0,39.46]
[1755580828219,0.03,180.01,180.0,39.46]
[1755580828424,0.03,180.01,180.0,76.98288984]
[1755580828629,0.03,180.02,180.01,15.10621557]
[1755580828815,0.03,180.02,180.01,28.76202186]
[1755580829007,0.03,180.02,180.01,29.42202186]
[1755580829801,0.2,180.03,180.01,29.42202186]
[1755580830001,0.2,180.03,180.02,89.40677493]
[1755580830931,0.2,180.03,180.02,94.96171327]
[1755580831510,0.2,180.03,180.02,68.96171327]
[1755580831758,0.03,180.05,180.04,41.10621557]
[1755580832022,0.03,180.05,180.04,88.72677493]
[1755580832234,0.03,180.05,180.04,89.38677493]
[1755580832935,0.03,180.05,180.04,94.94109619]
[1755580833309,0.03,180.05,180.04,88.74677493]
[1755580833630,0.03,180.05,180.04,94.30109619]
[1755580833805,0.03,180.05,180.04,94.96109619]
[1755580834312,0.03,180.05,180.04,94.30109619]
[1755580834518,0.03,180.05,180.04,88.78677493]
[1755580834715,0.03,180.05,180.04,94.34109619]
[1755580835106,0.03,180.05,180.04,88.78677493]
[1755580835427,0.75,180.05,180.04,88.78677493]
[1755580835837,0.75,180.05,180.04,23.20677493]
[1755580836028,0.75,180.05,180.04,54.68621557]
[1755580836340,0.03,180.05,180.04,62.78677493]
[1755580836939,0.03,180.05,180.04,68.34109619]
[1755580838012,0.73,180.05,180.04,62.78677493]
[1755580839043,0.73,180.05,180.04,62.74677493]
[1755580840632,0.73,180.05,180.04,39.54]
[1755580843944,8.83055936,180.05,180.04,39.54]
[1755580844323,0.03,180.05,180.04,62.74677493]
[1755580844526,0.03,180.05,180.04,68.99109619]
[1755580845045,0.03,180.05,180.04,60.89053683]
[1755580845250,0.03,180.05,180.04,68.99109619]
[1755580845652,0.03,180.05,180.04,54.64621557]
[1755580849264,0.73,180.05,180.04,39.54]
[1755580850769,0.03,180.05,180.04,39.54]
[1755580851149,0.03,180.05,180.04,54.64621557]
[1755580851473,0.03,180.05,180.04,68.99109619]
[1755580855580,0.03,180.05,180.04,60.20053683]
[1755580855950,0.03,180.05,180.04,94.99109619]
[1755580860303,0.73,180.05,180.04,41.10621557]
[1755580860583,0.73,180.05,180.04,39.48]
[1755580860988,0.03,180.05,180.04,39.48]
[1755580861285,0.03,180.05,180.04,54.58621557]
[1755580861787,0.73,180.05,180.04,39.48]
[1755580862204,0.03,180.05,180.04,39.48]
[1755580862758,0.03,180.05,180.04,54.58621557]
[1755580864490,0.03,180.05,180.04,68.93109619]
[1755580864663,0.03,180.05,180.04,60.83053683]
[1755580864863,0.03,180.05,180.04,68.93109619]
[1755580865968,0.03,180.05,180.04,94.93109619]
[1755580866169,0.03,180.05,180.04,86.83053683]
[1755580866491,0.03,180.05,180.04,94.93109619]
[1755580867699,0.03,180.05,180.04,94.26109619]
[1755580868386,0.03,180.05,180.04,94.94109619]
[1755580874573,0.03,180.05,180.04,86.84053683]
[1755580874780,0.03,180.05,180.04,94.94109619]
[1755580875283,1e-08,180.05,180.04,68.94109619]
[1755580875489,0.2,180.06,180.05,15.10621557]
[1755580875690,0.2,180.06,180.05,23.88677493]
[1755580876683,0.2,180.06,180.05,29.4407877]
[1755580877477,0.2,180.06,180.05,28.7607877]
[1755580877678,0.2,180.06,180.05,68.2207877]
[1755580878779,0.9,180.06,180.05,41.10621557]
[1755580879084,0.9,180.06,180.05,80.56621557]
[1755580879287,0.9,180.06,180.05,94.2207877]
[1755580879482,0.2,180.06,180.05,94.2207877]
[1755580880815,0.2,180.06,180.05,94.9007877]
[1755580882491,0.2,180.06,180.05,68.9007877]
[1755580883702,0.2,180.06,180.05,68.9607877]
[1755580886114,0.2,180.06,180.05,60.18022834]
[1755580886295,0.2,180.06,180.05,68.9607877]
[1755580886493,0.03,180.07,180.05,68.9607877]
[1755580886812,0.03,180.07,180.06,49.88677493]
[1755580887599,0.03,180.07,180.06,49.20677493]
[1755580887790,0.03,180.07,180.06,54.76047925]
[1755580887989,0.03,180.07,180.06,55.44047925]
[1755580888911,1e-08,180.07,180.06,29.44047925]
[1755580889694,1e-08,180.08,180.07,41.10621557]
[1755580890008,1e-08,180.08,180.07,94.22017083]
[1755580890210,1e-08,180.08,180.07,94.90017083]
[1755580891186,1e-08,180.08,180.07,86.79961147]
[1755580891393,1e-08,180.08,180.07,94.90017083]
[1755580891909,1e-08,180.08,180.07,94.22017083]
[1755580892286,1e-08,180.08,180.07,94.90017083]
[1755580893395,0.03,180.09,180.07,94.90017083]
[1755580893396,1e-08,180.09,180.07,95.45551042]
[1755580893591,1e-08,180.09,180.08,23.20677493]
[1755580893808,1e-08,180.09,180.08,62.84677493]
[1755580894195,1e-08,180.09,180.08,68.39986244]
[1755580894394,1e-08,180.09,180.08,69.07986244]
[1755580894908,1e-08,180.1,180.09,23.20677493]
[1755580895209,1e-08,180.1,180.09,23.88677493]
[1755580896196,1e-08,180.1,180.09,29.43955409]
[1755580897499,1e-08,180.1,180.09,28.75955409]
[1755580898106,1e-08,180.1,180.09,94.35955409]
[1755580898498,0.71000001,180.1,180.09,94.35955409]
[1755580898886,0.71000001,180.1,180.07,15.10621557]
[1755580899211,0.71000001,180.1,180.08,39.66]
[1755580899514,8.10055936,180.09,180.05,0.06]
[1755580899718,8.10055936,180.06,180.05,0.06]
[1755580899930,0.71,180.06,180.05,39.74]
[1755580900635,0.71,180.06,180.05,54.84621557]
[1755580901195,0.71,180.06,180.05,60.40022834]
[1755580902113,0.69,180.08,180.06,15.10621557]
[1755580902316,1e-08,180.1,180.07,54.80621557]
[1755580902522,8.10055936,180.08,180.07,39.7]
[1755580902902,8.79055936,180.08,180.07,39.7]
[1755580905006,8.79055936,180.08,180.05,0.06]
[1755580905214,8.10055936,180.06,180.05,39.76]
[1755580905518,8.79055936,180.06,180.05,39.76]
[1755580906097,0.69,180.06,180.05,39.76]
[1755580907029,0.69,180.08,180.05,39.76]
[1755580907323,0.71,180.07,180.05,39.76]
[1755580907693,1e-08,180.1,180.05,39.76]
[1755580907694,0.71,180.06,180.05,39.76]
[1755580908919,8.81055936,180.08,180.05,39.76]
[1755580909102,0.71,180.08,180.05,39.76]
[1755580909820,8.10055936,180.09,180.05,39.76]
[1755580909998,0.71,180.07,180.05,39.76]
[1755580910626,8.81055936,180.09,180.05,39.76]
[1755580910829,0.71,180.08,180.05,39.76]
[1755580911132,1e-08,180.1,180.08,15.10621557]